Cogmind - Beta 12 X4 @@@ ROGUE MODE // 2022.12.08 @ 15:33:27 Player: Lunatic Blue Result: Destroyed by M Guard with Ragnarok Missile Launcher Performance ------------- Evolutions (9) 4500 Regions Visited (15) 3000 Robots Destroyed (15) 75 Value Destroyed (478) 478 Prototype IDs (3) 60 Alien Tech Used (0) 0 Bonus (1300) 1300 TOTAL SCORE: 9413 Bonus ------- Entered DSFs 1000 Aligned with FarCom 300 Cogmind --------- Core Integrity 0/1600 Matter 237/300 Energy 83/100 System Corruption 27% Temperature Cool (0) Movement Rolling (90) Location -1/Command Parts ------- > --- POWER (2) -------- (None) > --- PROPULSION (8) --- Centrium Wheel > --- UTILITY (13) ----- Core Analyzer Hacking Suite > --- WEAPON (2) ------- (None) > --- INVENTORY (5) ---- Linear Gravjet Impulse Thruster Small Storage Unit Peak State ------------ > --- POWER ------------ Light Quantum Reactor Light Quantum Reactor > --- PROPULSION ------- Impulse Thruster Impulse Thruster Flying Fortress v7 Cooled Q-thruster Experimental Q-thruster > --- UTILITY ---------- Large Storage Unit Advanced Sensor Array Advanced Terrain Scanner Advanced Melee Analysis Suite Core Analyzer Advanced ECM Suite Hacking Suite Hacking Suite System Shield System Shield System Shield System Shield > --- WEAPON ----------- Power Sword > --- INVENTORY -------- Light Nuclear Core Micro Antimatter Reactor Centrium Wheel Linear Gravjet Xenon Bombardment Thruster Nuclear Pulse Thruster Nuclear Pulse Thruster Impulse Thruster Impulse Thruster Small Storage Unit Authchip [Processor] Light Assault Rifle Minigun Advanced Remote Datajack Mining Claw [Rating: 138] Favorites ----------- Power Micro Nuclear Core Engine Ion Engine Power Core Micro Nuclear Core Reactor Light Quantum Reactor Propulsion Aluminum Leg Leg Aluminum Leg Wheel Centrium Wheel Flight Unit Flying Fortress v7 Utility System Shield Device Advanced Sensor Array Storage Large Storage Unit Processor Core Analyzer Hackware System Shield Weapon Power Sword Energy Gun EM Pulse Gun Ballistic Gun Light Assault Rifle Launcher Proton Missile Launcher Slashing Weapon Power Sword Build | -11 -10 -10 -10 -9 -8 -7 -7 -6 -5 -4 -3 -3 -2 -1 -1 ------- Run | Scr Mat Min Exi Min Mat Fac DSF Fac Fac Fac Res DSF Res Acc Com Slots Evolved 18 | . . . . . 4 2 . 2 2 2 2 . 2 2 . Power 1 | . . . . . . . . . . 1 . . . . . Propulsion 6 | . . . . . 2 1 . 1 . 1 1 . . . . Utility 11 | . . . . . 2 1 . 1 2 . 1 . 2 2 . Weapon . | . . . . . . . . . . . . . . . . Parts Attached 63 | 6 3 4 . . 5 . 2 7 2 9 1 2 9 11 2 Power 10 | 1 2 1 . . 1 . . . . 1 1 . 2 1 . Engine 3 | 1 2 . . . . . . . . . . . . . . Core 3 | . . 1 . . 1 . . . . 1 . . . . . Reactor 4 | . . . . . . . . . . . 1 . 2 1 . Propulsion 26 | 2 . 2 . . 1 . . 2 . 5 . 2 2 9 1 Treads . | . . . . . . . . . . . . . . . . Leg 4 | 2 . 2 . . . . . . . . . . . . . Wheel 1 | . . . . . . . . . . . . . . . 1 Hover . | . . . . . . . . . . . . . . . . Flight 21 | . . . . . 1 . . 2 . 5 . 2 2 9 . Utility 20 | 1 1 . . . 2 . 1 5 2 2 . . 5 1 . Device 6 | . 1 . . . . . . 1 2 1 . . . 1 . Storage 2 | 1 . . . . 1 . . . . . . . . . . Processor 2 | . . . . . . . . . . . . . 2 . . Hackware 10 | . . . . . 1 . 1 4 . 1 . . 3 . . Protection . | . . . . . . . . . . . . . . . . Artifact . | . . . . . . . . . . . . . . . . Weapon 7 | 2 . 1 . . 1 . 1 . . 1 . . . . 1 Energy Gun 2 | 1 . 1 . . . . . . . . . . . . . Energy Cannon . | . . . . . . . . . . . . . . . . Ballistic Gun 2 | 1 . . . . 1 . . . . . . . . . . Ballistic Cannon . | . . . . . . . . . . . . . . . . Launcher 1 | . . . . . . . . . . 1 . . . . . Special Weapon . | . . . . . . . . . . . . . . . . Impact Weapon . | . . . . . . . . . . . . . . . . Slashing Weapon 2 | . . . . . . . 1 . . . . . . . 1 Piercing Weapon . | . . . . . . . . . . . . . . . . Special Melee Weapon . | . . . . . . . . . . . . . . . . Unidentified Prototypes 3 | . . . . . 1 . . . . . . . 2 . . Parts Lost 30 | . . 1 . . . . . . . 2 . 2 . 15 10 Power 3 | . . . . . . . . . . . . . . 3 . Propulsion 13 | . . . . . . . . . . 1 . 1 . 7 4 Utility 10 | . . . . . . . . . . 1 . . . 5 4 Weapon 4 | . . 1 . . . . . . . . . 1 . . 2 Highest Loss Streak 10 | . . 1 . . . . . . . 1 . 2 . 7 10 To Critical Strikes . | . . . . . . . . . . . . . . . . Average Slot Usage (%) 79 | . 89 100 100 100 50 . 62 75 74 76 71 71 78 73 39 Engine 1 | . 14 3 . . . . . . . . . . . . . Core 5 | . . 10 14 14 9 . 7 6 5 9 4 4 1 . . Reactor 1 | . . . . . . . . . . . 4 4 6 6 . Leg 8 | . 28 28 28 28 . . . . . . . . . . . Flight 13 | . . . . . 9 . 7 17 17 19 19 21 21 20 12 Device 9 | . 3 14 14 14 9 . 7 3 9 11 9 9 8 10 4 Storage 7 | . 14 14 14 14 11 . 15 6 5 5 4 4 4 2 . Processor 2 | . . . . . . . . . . . . . 6 8 8 Hackware 14 | . . . . . 2 . 13 26 23 20 19 19 25 21 11 Energy Gun 4 | . 14 14 14 14 1 . . . . . . . . . . Ballistic Gun 5 | . 14 14 14 14 9 . 7 6 5 . . . . . . Slashing Weapon 3 | . . . . . . . 2 6 5 5 4 4 4 4 3 Naked Turns . | . . . . . . . . . . . . . . . . Heaviest Build 58 | 11 14 14 14 14 35 35 38 38 35 45 46 46 55 58 6 Greatest Support 77 | 20 20 20 20 20 50 50 50 60 60 69 69 74 75 77 39 Greatest Overweight (x) 2 | 1 . . . . . . . . . . . . . 2 . Average Overweight (x) . | . . . . . . . . . . . . . . . . Largest Inventory Capacity 15 | 8 8 8 8 8 15 15 15 15 15 15 15 15 15 15 5 Average Capacity 11 | 7 8 8 8 8 9 15 15 15 15 15 15 15 15 11 5 Most Carried 15 | 3 6 7 8 8 8 8 13 15 15 15 15 15 12 15 5 Average Carried 10 | 1 3 5 6 8 6 8 10 11 15 14 15 13 11 10 4 Final Capacity 15 | 8 8 8 8 8 15 15 15 15 15 15 15 15 15 5 5 Final Carried 15 | 3 5 6 8 8 8 8 13 15 15 15 15 13 12 5 3 Class Distribution -------------------- 29% | Hacker-Scout 20% | Scavenger-Mutant 12% | Wizard-Ninja 12% | Mutant 11% | Hacker-Mutant 6% | Hacker-Ninja 5% | Wizard-Scout Dominant Class ---------------- Mutant | -10/Materials Scavenger-Mutant | -10/Mines Scavenger-Mutant | -10/Exiles Scavenger-Mutant | -9/Mines Mutant | -8/Materials Mutant | -7/Factory Hacker-Mutant | -7/DSF Hacker-Mutant | -6/Factory Hacker-Scout | -5/Factory Hacker-Scout | -4/Factory Hacker-Scout | -3/Research Hacker-Scout | -3/DSF Wizard-Scout | -2/Research Wizard-Ninja | -1/Access Hacker-Mutant | -1/Command Resources | -11 -10 -10 -10 -9 -8 -7 -7 -6 -5 -4 -3 -3 -2 -1 -1 ----------- Run | Scr Mat Min Exi Min Mat Fac DSF Fac Fac Fac Res DSF Res Acc Com Matter Collected 672 | 220 79 53 . . . . 60 8 . 147 . . 95 10 . Remotely . | . . . . . . . . . . . . . . . . Salvage Created 569 | . 182 85 . . . . . . . 204 . . 98 . . Parts 30 | . 9 4 . . . . . . . 13 . . 4 . . Haulers Intercepted 1 | . . . . . . . . . . . . . 1 . . Recyclers Shooed 1 | . 1 . . . . . . . . . . . . . . Parts Field Recycled . | . . . . . . . . . . . . . . . . Retrieved Matter . | . . . . . . . . . . . . . . . . Parts Self-Destructed . | . . . . . . . . . . . . . . . . Prevented . | . . . . . . . . . . . . . . . . Kills | -11 -10 -10 -10 -9 -8 -7 -7 -6 -5 -4 -3 -3 -2 -1 -1 ------- Run | Scr Mat Min Exi Min Mat Fac DSF Fac Fac Fac Res DSF Res Acc Com Combat Hostiles Destroyed 13 | . 4 2 . . . . . . . 7 . . . . . Melee 6 | . . . . . . . . . . 6 . . . . . Guns 6 | . 4 2 . . . . . . . . . . . . . AOE 1 | . . . . . . . . . . 1 . . . . . Classes Destroyed 4 | . 1 . . . . . . . . 2 . . 1 . . Hauler 1 | . . . . . . . . . . . . . 1 . . Operator 1 | . . . . . . . . . . 1 . . . . . Swarmer 7 | . . . . . . . . . . 7 . . . . . Grunt 6 | . 4 2 . . . . . . . . . . . . . Best Kill Streak 4 | . 2 2 . . . . . . . 4 . . 1 . . Combat Bots Only 4 | . 2 2 . . . . . . . 4 . . . . . Max Kills in Single Turn 1 | . 1 1 . . . . . . . 1 . . 1 . . Gunslinging . | . . . . . . . . . . . . . . . . Exploded 1 | . . . . . . . . . . 1 . . . . . Melee 1 | . . . . . . . . . . 1 . . . . . Uniques/NPCs Destroyed . | . . . . . . . . . . . . . . . . Combat | -11 -10 -10 -10 -9 -8 -7 -7 -6 -5 -4 -3 -3 -2 -1 -1 -------- Run | Scr Mat Min Exi Min Mat Fac DSF Fac Fac Fac Res DSF Res Acc Com Damage Taken 4774 | . 244 182 . . 469 . 20 . 19 403 . 166 242 1307 1722 Core 1885 | . 70 25 . . 71 . . . . 31 . . 77 354 1257 Absorbed by Shields . | . . . . . . . . . . . . . . . . Core Remaining (%) 93 | 100 . . . 62 87 . 100 100 100 97 . 100 94 . . Volleys Fired 29 | . 19 8 . . . . . . . 2 . . . . . Largest 2 | . 2 2 . . . . . . . 1 . . . . . Hottest 70 | . 70 70 . . . . . . . 39 . . . . . Shots Fired 55 | . 38 15 . . . . . . . 2 . . . . . Gun 53 | . 38 15 . . . . . . . . . . . . . Cannon . | . . . . . . . . . . . . . . . . Launcher 2 | . . . . . . . . . . 2 . . . . . Special . | . . . . . . . . . . . . . . . . Kinetic 27 | . 19 8 . . . . . . . . . . . . . Thermal 21 | . 19 2 . . . . . . . . . . . . . Explosive . | . . . . . . . . . . . . . . . . Electromagnetic 7 | . . 5 . . . . . . . 2 . . . . . Robot Hit Streak 13 | . 8 13 . . . . . . . . . . . . . Robot Miss Streak 3 | . 3 2 . . . . . . . 1 . . . . . Penetration Max . | . . . . . . . . . . . . . . . . Secondary Targets . | . . . . . . . . . . . . . . . . Shots Hit Robots 53 | . 25 10 . . . . . . . 13 . . 1 1 3 Core Hits 25 | . 10 5 . . . . . . . 8 . . 1 . 1 Critical Kills . | . . . . . . . . . . . . . . . . Critical Parts Destroyed . | . . . . . . . . . . . . . . . . Critical Strikes 2 | . 1 . . . . . . . . . . . . . 1 Burn 1 | . 1 . . . . . . . . . . . . . . Sever 1 | . . . . . . . . . . . . . . . 1 Melee Attacks 145 | . . . . . . . . 4 5 47 . . 12 74 3 Impact . | . . . . . . . . . . . . . . . . Slashing 145 | . . . . . . . . 4 5 47 . . 12 74 3 Piercing . | . . . . . . . . . . . . . . . . Sneak Attacks 1 | . . . . . . . . . . . . . 1 . . Combat Hostiles . | . . . . . . . . . . . . . . . . Follow-up Attacks . | . . . . . . . . . . . . . . . . Damage Inflicted 1360 | . 263 112 . . . . . . . 665 . . 99 80 141 Guns 375 | . 263 112 . . . . . . . . . . . . . Cannons . | . . . . . . . . . . . . . . . . Explosions 84 | . . . . . . . . . . 84 . . . . . Melee 901 | . . . . . . . . . . 581 . . 99 80 141 Ramming . | . . . . . . . . . . . . . . . . Kinetic 150 | . 100 50 . . . . . . . . . . . . . Thermal 188 | . 163 25 . . . . . . . . . . . . . Explosive . | . . . . . . . . . . . . . . . . Electromagnetic 121 | . . 37 . . . . . . . 84 . . . . . Impact . | . . . . . . . . . . . . . . . . Slashing 901 | . . . . . . . . . . 581 . . 99 80 141 Piercing . | . . . . . . . . . . . . . . . . Highest Corruption 27 | . . . . . . . . . . . . . 2 18 27 Average Corruption 6 | . . . . . . . . . . . . . 1 4 18 Corruption Purged . | . . . . . . . . . . . . . . . . Corruption Blocked . | . . . . . . . . . . . . . . . . Effects 9 | . . . . . . . . . . . . . . 4 5 Message Errors 2 | . . . . . . . . . . . . . . 2 . Matter Fused 2 | . . . . . . . . . . . . . . 1 1 Energy Discharges 1 | . . . . . . . . . . . . . . . 1 Data Loss (minor) 2 | . . . . . . . . . . . . . . 1 1 Misdirections 2 | . . . . . . . . . . . . . . . 2 Overload Shots . | . . . . . . . . . . . . . . . . Overflow Damage 126 | . . . . . . . . . . 91 . . . 35 . Projectiles . | . . . . . . . . . . . . . . . . Explosions . | . . . . . . . . . . . . . . . . Melee 126 | . . . . . . . . . . 91 . . . 35 . Knockbacks . | . . . . . . . . . . . . . . . . Impact . | . . . . . . . . . . . . . . . . Kinetic . | . . . . . . . . . . . . . . . . Secondary . | . . . . . . . . . . . . . . . . Self-Inflicted Damage . | . . . . . . . . . . . . . . . . Shots . | . . . . . . . . . . . . . . . . Rammed . | . . . . . . . . . . . . . . . . Targets Rammed . | . . . . . . . . . . . . . . . . Kicked . | . . . . . . . . . . . . . . . . Crushed . | . . . . . . . . . . . . . . . . Highest Temperature 156 | . 156 27 . . 11 . . . . . . . 47 28 . Average Temperature 24 | . 73 10 . . 11 . . . . . . . 9 3 . Received Heat Transfer 450 | . 126 126 . . 144 . . . . . . . 9 27 18 Siege Activations . | . . . . . . . . . . . . . . . . Robots Corrupted . | . . . . . . . . . . . . . . . . Combat Hostiles . | . . . . . . . . . . . . . . . . Parts Fried . | . . . . . . . . . . . . . . . . Impact Corruptions . | . . . . . . . . . . . . . . . . Robots Melted . | . . . . . . . . . . . . . . . . Combat Hostiles . | . . . . . . . . . . . . . . . . Parts Melted . | . . . . . . . . . . . . . . . . Heat Transferred 629 | . 555 74 . . . . . . . . . . . . . Parts Sabotaged . | . . . . . . . . . . . . . . . . Parts Stolen . | . . . . . . . . . . . . . . . . Parts Stripped . | . . . . . . . . . . . . . . . . Power Chain Reactions . | . . . . . . . . . . . . . . . . Missiles Intercepted . | . . . . . . . . . . . . . . . . Alert | -11 -10 -10 -10 -9 -8 -7 -7 -6 -5 -4 -3 -3 -2 -1 -1 ------- Run | Scr Mat Min Exi Min Mat Fac DSF Fac Fac Fac Res DSF Res Acc Com Peak Influence 207 | . 140 94 . . 110 49 34 96 71 207 69 51 180 207 89 Initial 108 | . . 54 . . . 49 34 17 46 34 69 51 17 108 19 Average 67 | . 56 87 . . 45 49 34 38 51 127 69 36 50 74 57 Maximum Alert Level 1 | . . . . . . . . . . 1 . . . 1 . Low Security (%) 90 | 100 100 100 . 100 100 100 100 100 100 60 100 100 100 98 100 Level 1 9 | . . . . . . . . . . 39 . . . 1 . Level 2 . | . . . . . . . . . . . . . . . . Level 3 . | . . . . . . . . . . . . . . . . Level 4 . | . . . . . . . . . . . . . . . . Level 5 . | . . . . . . . . . . . . . . . . High Security . | . . . . . . . . . . . . . . . . Max Security . | . . . . . . . . . . . . . . . . Squads Dispatched 8 | . . . . . 2 . . 2 . 2 . . . 1 1 Investigation 4 | . . . . . 1 . . 1 . 1 . . . 1 . Extermination 1 | . . . . . . . . 1 . . . . . . . Reinforcement 3 | . . . . . 1 . . . . 1 . . . . 1 Assault . | . . . . . . . . . . . . . . . . Garrison . | . . . . . . . . . . . . . . . . Intercept . | . . . . . . . . . . . . . . . . Searches Triggered . | . . . . . . . . . . . . . . . . Construction Impeded 1 | . . . . . . . . . . 1 . . . . . Haulers Reinforced . | . . . . . . . . . . . . . . . . Active Scanning Responses . | . . . . . . . . . . . . . . . . Cargo Convoy Interrupts . | . . . . . . . . . . . . . . . . Stealth | -11 -10 -10 -10 -9 -8 -7 -7 -6 -5 -4 -3 -3 -2 -1 -1 --------- Run | Scr Mat Min Exi Min Mat Fac DSF Fac Fac Fac Res DSF Res Acc Com Distress Signals 5 | . . . . . . . . . 1 1 . . . 3 . Communications Jammed . | . . . . . . . . . . . . . . . . Distress Signals . | . . . . . . . . . . . . . . . . Times Spotted 93 | . 5 4 . . 17 . 8 2 2 13 . 1 13 16 12 Peak Tracking Total 15 | . 2 2 . . 15 . 4 2 4 5 . 1 13 9 10 Tactical Retreats 10 | . . . . . . . . . . 2 . . . 7 1 Traps | -11 -10 -10 -10 -9 -8 -7 -7 -6 -5 -4 -3 -3 -2 -1 -1 ------- Run | Scr Mat Min Exi Min Mat Fac DSF Fac Fac Fac Res DSF Res Acc Com Traps Triggered 7 | . 1 . . . 1 . 1 . . . . . 2 2 . Indirectly . | . . . . . . . . . . . . . . . . Trap Hack Attempts . | . . . . . . . . . . . . . . . . Triggered . | . . . . . . . . . . . . . . . . Disarmed . | . . . . . . . . . . . . . . . . Reprogrammed . | . . . . . . . . . . . . . . . . Reused . | . . . . . . . . . . . . . . . . Traps Extracted . | . . . . . . . . . . . . . . . . Installed . | . . . . . . . . . . . . . . . . Triggered . | . . . . . . . . . . . . . . . . Machines | -11 -10 -10 -10 -9 -8 -7 -7 -6 -5 -4 -3 -3 -2 -1 -1 ---------- Run | Scr Mat Min Exi Min Mat Fac DSF Fac Fac Fac Res DSF Res Acc Com Machines Disabled 2 | . . . . . . . . . . 1 . . . 1 . Max in Single Turn 1 | . . . . . . . . . . 1 . . . 1 . Garrison Access 5 | . . . . . . . . . 1 . . . 1 3 . Machines Sabotaged . | . . . . . . . . . . . . . . . . Overloaded Fab Kills . | . . . . . . . . . . . . . . . . Hacking | -11 -10 -10 -10 -9 -8 -7 -7 -6 -5 -4 -3 -3 -2 -1 -1 --------- Run | Scr Mat Min Exi Min Mat Fac DSF Fac Fac Fac Res DSF Res Acc Com Machines Accessed 38 | . 2 . 1 . 1 1 . 8 2 6 1 . 4 12 . Terminals 22 | . 2 . . . 1 1 . 3 . 3 1 . 2 9 . Fabricators 6 | . . . . . . . . 3 1 1 . . 1 . . Repair Stations . | . . . . . . . . . . . . . . . . Recycling Units . | . . . . . . . . . . . . . . . . Scanalyzers 4 | . . . . . . . . 2 . 2 . . . . . Garrison Access 5 | . . . . . . . . . 1 . . . 1 3 . Total Hacks 88 | . 5 . 1 . 5 1 . 23 3 16 1 . 8 25 . Successful 47 | . 4 . 1 . 4 1 . 12 2 7 1 . 6 9 . Failed 41 | . 1 . . . 1 . . 11 1 9 . . 2 16 . Catastrophic 12 | . . . . . . . . 3 . 3 . . . 6 . Database Lockouts . | . . . . . . . . . . . . . . . . Manual 34 | . 5 . 1 . 5 . . 6 . 8 . . 1 8 . Terminals 52 | . 5 . . . 5 1 . 10 . 9 1 . 2 19 . Fabricators 18 | . . . . . . . . 9 2 3 . . 4 . . Repair Stations . | . . . . . . . . . . . . . . . . Recycling Units . | . . . . . . . . . . . . . . . . Scanalyzers 8 | . . . . . . . . 4 . 4 . . . . . Garrison Access 9 | . . . . . . . . . 1 . . . 2 6 . Terminal Hacks 15 | . . . 1 . 1 1 . 2 . 1 1 . 2 6 . Record 2 | . . . 1 . . . . . . 1 . . . . . Open Door 3 | . . . . . . . . . . . . . . 3 . Open DSF 4 | . . . . . . 1 . 1 . . 1 . 1 . . Level Access Points 2 | . . . . . . . . 1 . . . . 1 . . Terminal Index 1 | . . . . . . . . . . . . . . 1 . Unreport Threat 2 | . . . . . . . . . . . . . . 2 . Zone Layout 1 | . . . . . 1 . . . . . . . . . . Fabricator Hacks 10 | . . . . . . . . 5 1 1 . . 3 . . Network Status 4 | . . . . . . . . 1 1 1 . . 1 . . Load Schematic 3 | . . . . . . . . 2 . . . . 1 . . Build 3 | . . . . . . . . 2 . . . . 1 . . Repair Station Hacks . | . . . . . . . . . . . . . . . . Recycling Unit Hacks . | . . . . . . . . . . . . . . . . Scanalyzer 8 | . . . . . . . . 4 . 4 . . . . . Insert Component 4 | . . . . . . . . 2 . 2 . . . . . Analyze 4 | . . . . . . . . 2 . 2 . . . . . Garrison Access Hacks 5 | . . . . . . . . . 1 . . . 1 3 . Seal Access 5 | . . . . . . . . . 1 . . . 1 3 . Unauthorized Hacks 9 | . 4 . . . 3 . . 1 . 1 . . . . . Terminals 8 | . 4 . . . 3 . . . . 1 . . . . . Track 1 | . . . . . 1 . . . . . . . . . . Assimilate 1 | . . . . . . . . . . 1 . . . . . Botnet 3 | . 2 . . . 1 . . . . . . . . . . Operators 3 | . 2 . . . 1 . . . . . . . . . . Fabricators 1 | . . . . . . . . 1 . . . . . . . Recompile 1 | . . . . . . . . 1 . . . . . . . Repair Stations . | . . . . . . . . . . . . . . . . Recycling Units . | . . . . . . . . . . . . . . . . Scanalyzers . | . . . . . . . . . . . . . . . . Garrison Access . | . . . . . . . . . . . . . . . . Data Cores Recovered 1 | . . . . . . . . . . 1 . . . . . Used 1 | . . . . . . . . . . 1 . . . . . Hacking Detections 20 | . 1 . . . 1 . . 5 . 4 . . 1 8 . Full Trace Events 2 | . . . . . . . . . . 1 . . . 1 . Feedback Events . | . . . . . . . . . . . . . . . . Feedback Blocked . | . . . . . . . . . . . . . . . . Robot Schematics Acquired . | . . . . . . . . . . . . . . . . Robots Built 1 | . . . . . . . . 1 . . . . . . . Authchips . | . . . . . . . . . . . . . . . . Time 58 | . . . . . . . . 58 . . . . . . . Total Robot Build Rating 3 | . . . . . . . . 3 . . . . . . . Part Schematics Acquired 4 | . . . . . . . . 2 . 2 . . . . . Parts Built 3 | . . . . . . . . 2 . . . . 1 . . Authchips 2 | . . . . . . . . 1 . . . . 1 . . Time 71 | . . . . . . . . 47 . . . . 24 . . Total Part Build Rating 13 | . . . . . . . . 10 . . . . 3 . . Parts Repaired . | . . . . . . . . . . . . . . . . Time . | . . . . . . . . . . . . . . . . Parts Recycled . | . . . . . . . . . . . . . . . . Recycled Matter . | . . . . . . . . . . . . . . . . Retrieved Matter . | . . . . . . . . . . . . . . . . Retrieved Components . | . . . . . . . . . . . . . . . . Parts Scanalyzed 4 | . . . . . . . . 2 . 2 . . . . . Part Schematics Acquired 4 | . . . . . . . . 2 . 2 . . . . . Parts Damaged . | . . . . . . . . . . . . . . . . Bothacking | -11 -10 -10 -10 -9 -8 -7 -7 -6 -5 -4 -3 -3 -2 -1 -1 ------------ Run | Scr Mat Min Exi Min Mat Fac DSF Fac Fac Fac Res DSF Res Acc Com Used RIF Installer . | . . . . . . . . . . . . . . . . Robots Hacked . | . . . . . . . . . . . . . . . . Non-combat . | . . . . . . . . . . . . . . . . Combat . | . . . . . . . . . . . . . . . . Robot Hacks Applied . | . . . . . . . . . . . . . . . . Relay Couplers Released . | . . . . . . . . . . . . . . . . Fabnet Peak Effective % . | . . . . . . . . . . . . . . . . Robots Rewired . | . . . . . . . . . . . . . . . . Allies Hacked . | . . . . . . . . . . . . . . . . Hacks Repelled . | . . . . . . . . . . . . . . . . Allies | -11 -10 -10 -10 -9 -8 -7 -7 -6 -5 -4 -3 -3 -2 -1 -1 -------- Run | Scr Mat Min Exi Min Mat Fac DSF Fac Fac Fac Res DSF Res Acc Com Total Allies 1 | . . . . . . . . 1 . . . . . . . Largest Group . | . . . . . . . . . . . . . . . . Highest-Rated Group . | . . . . . . . . . . . . . . . . Highest-Rated Ally . | . . . . . . . . . . . . . . . . Total Orders . | . . . . . . . . . . . . . . . . Ally Attacks . | . . . . . . . . . . . . . . . . Total Damage . | . . . . . . . . . . . . . . . . Kills . | . . . . . . . . . . . . . . . . Allies Corrupted . | . . . . . . . . . . . . . . . . Allies Melted . | . . . . . . . . . . . . . . . . Intel | -11 -10 -10 -10 -9 -8 -7 -7 -6 -5 -4 -3 -3 -2 -1 -1 ------- Run | Scr Mat Min Exi Min Mat Fac DSF Fac Fac Fac Res DSF Res Acc Com Robot Analysis Total . | . . . . . . . . . . . . . . . . Derelict Logs Recovered 1 | . . 1 . . . . . . . . . . . . . Drone Launches . | . . . . . . . . . . . . . . . . Drone Recoveries . | . . . . . . . . . . . . . . . . Exploration | -11 -10 -10 -10 -9 -8 -7 -7 -6 -5 -4 -3 -3 -2 -1 -1 ------------- Run | Scr Mat Min Exi Min Mat Fac DSF Fac Fac Fac Res DSF Res Acc Com Turns Passed 2996 | 54 224 116 258 242 89 4 44 258 164 589 12 22 197 643 80 Spaces Moved 4225 | 37 120 73 214 201 156 8 61 504 329 653 30 65 428 1165 181 Core 6 | 5 . . . . . . . . . . . . . . 1 Treads . | . . . . . . . . . . . . . . . . Legs 640 | 32 120 73 214 201 . . . . . . . . . . . Wheels 6 | . . . . . . . . . . . . . . . 6 Hover . | . . . . . . . . . . . . . . . . Flight 3573 | . . . . . 156 8 61 504 329 653 30 65 428 1165 174 Fastest Speed 20 | 50 120 120 120 120 50 50 50 35 35 29 33 30 24 20 30 Average Speed 45 | 111 120 120 120 120 50 50 50 36 35 31 33 31 27 26 37 Slowest Speed 140 | 120 120 120 120 120 50 50 50 39 35 39 33 37 30 140 90 Overloaded Moves . | . . . . . . . . . . . . . . . . Propulsion Burnouts . | . . . . . . . . . . . . . . . . Robots Hopped 25 | . . . . . 11 . 1 3 . 2 . 1 2 5 . Cave-ins Triggered 5 | . . . . . . . . . . . . . . 5 . Exploration Rate (%) 29 | 3 24 24 59 56 22 . 71 14 10 17 2 82 23 27 15 Regions Visited 15 Branch Regions 4 Pre-discovered Areas 2 | . . . 1 1 . . . . . . . . . . . Known Exits Taken 5 | . . . . . 1 1 . 1 . . 1 . 1 . . Unknown Exits Taken 8 | 1 1 1 1 1 . . . . 1 1 . . . 1 . Scrap Searched 1 | . . . . 1 . . . . . . . . . . . Spaces Dug 115 | . . . . . . . . 4 5 26 . . 11 69 . Terrain Destroyed 115 | . . . . . . . . 4 5 26 . . 11 69 . Melee 115 | . . . . . . . . 4 5 26 . . 11 69 . Projectile . | . . . . . . . . . . . . . . . . AOE . | . . . . . . . . . . . . . . . . Terrain Rammed . | . . . . . . . . . . . . . . . . Walls Destroyed . | . . . . . . . . . . . . . . . . Machines Disabled . | . . . . . . . . . . . . . . . . Actions | -11 -10 -10 -10 -9 -8 -7 -7 -6 -5 -4 -3 -3 -2 -1 -1 --------- Run | Scr Mat Min Exi Min Mat Fac DSF Fac Fac Fac Res DSF Res Acc Com Total 5005 | 46 165 87 216 202 154 7 71 569 368 962 31 65 484 1390 188 Wait 507 | 1 20 . . . . . . 45 33 246 . . 28 132 2 Move 4160 | 36 119 72 213 200 138 7 58 497 328 648 29 62 423 1149 181 Hop 20 | . . . . . 6 . 1 3 . 2 . 1 2 5 . Pick Up 33 | 3 2 1 1 1 2 . 5 7 . 3 . . 1 7 . Fast Attach 30 | 6 1 1 . . 2 . 2 4 2 3 1 . 5 3 . Attach 19 | . . 1 . . 1 . . 3 . 1 . 2 3 6 2 Detach 1 | . . . . . . . . 1 . . . . . . . Swap 14 | . 2 2 . . 2 . . . . 5 . . 1 2 . Drop 31 | . 2 2 2 1 3 . . 5 . 5 1 . 3 7 . Fire 29 | . 19 8 . . . . . . . 2 . . . . . Melee 145 | . . . . . . . . 4 5 47 . . 12 74 3 Ram . | . . . . . . . . . . . . . . . . Kick . | . . . . . . . . . . . . . . . . Crush . | . . . . . . . . . . . . . . . . Escape Stasis 16 | . . . . . . . 5 . . . . . 6 5 . Rewire . | . . . . . . . . . . . . . . . . Trap . | . . . . . . . . . . . . . . . . Miscellaneous . | . . . . . . . . . . . . . . . . Route ------- -11/Scrapyard -10/Materials -10/Mines -10/Exiles -9/Mines -8/Materials -7/Factory -7/DSF -6/Factory (discovered 4 exits: *Fac x4) -5/Factory -4/Factory -3/Research -3/DSF -2/Research (discovered 3 exits: *Acc x3) -1/Access -1/Command History --------- Turn | Location | Event 17 | -11/Scrapyard | Discovered new exit (range 15) 55 | -11/Scrapyard | Entered Materials 255 | -10/Materials | Discovered new exit (range 8) 279 | -10/Materials | Entered Mines 379 | -10/Mines | Learned location of 1 exit from Materials 390 | -10/Mines | Deemed a non-threat by the Exiles lab entrance 390 | -10/Mines | Discovered new exit (range 5) 395 | -10/Mines | Entered Exiles 423 | -10/Exiles | Met 8R-AWN 446 | -10/Exiles | Met EX-HEX 479 | -10/Exiles | Met EX-BIN 494 | -10/Exiles | Aligned with FarCom system 495 | -10/Exiles | Given EX-Vault access code 523 | -10/Exiles | Opened EX-Vault 530 | -10/Exiles | Found Prototype Flight Unit 555 | -10/Exiles | Warned to stay clear of 0b10 Research branches 588 | -10/Exiles | Build established: Scavenger-Mutant 589 | -10/Exiles | Met EX-DEC 594 | -10/Exiles | Learned location of Zion (-6) 641 | -10/Exiles | Discovered new exit (range 10) 653 | -10/Exiles | Left Exiles lab with Flying Fortress v7 653 | -10/Exiles | Entered Mines 654 | -9/Mines | Learned location of Storage (-7) 718 | -9/Mines | Received a Rocket Launcher from a helpful Derelict 871 | -9/Mines | Discovered new exit (range 7) 895 | -9/Mines | Entered Materials 895 | -8/Materials | Evolved 4 slots: Propulsion x2, Utility x2 896 | -8/Materials | Identified exit to Factory 896 | -8/Materials | Identified Flying Fortress v7 984 | -8/Materials | Entered Factory 984 | -7/Factory | Evolved 2 slots: Propulsion x1, Utility x1 988 | -7/Factory | Identified exit to DSF 988 | -7/Factory | Entered DSF 988 | -7/DSF | Encountered a pitched battle between 0b10 and Warlord forces 1015 | -7/DSF | Spotted Executioner 1024 | -7/DSF | Discovered new exit (range 14) 1032 | -7/DSF | Entered Factory 1032 | -6/Factory | Evolved 2 slots: Propulsion x1, Utility x1 1143 | -6/Factory | Fabricated O-24 Administrator (x1) 1210 | -6/Factory | Fabricated Nuclear Pulse Thruster (x2) 1270 | -6/Factory | Identified exit to Factory 1287 | -6/Factory | Spotted B-75 Beast 1290 | -6/Factory | Entered another Factory area 1290 | -5/Factory | Evolved 2 slots: Utility x2 1452 | -5/Factory | Discovered new exit (range 4) 1454 | -5/Factory | Entered another Factory area 1454 | -4/Factory | Evolved 2 slots: Power x1, Propulsion x1 1546 | -4/Factory | Build established: Hacker-Scout 2038 | -4/Factory | Discovered new exit (range 10) 2043 | -4/Factory | Entered Research 2043 | -3/Research | Evolved 2 slots: Propulsion x1, Utility x1 2055 | -3/Research | Identified exit to DSF 2055 | -3/Research | Entered DSF 2074 | -3/DSF | Discovered new exit (range 14) 2076 | -3/DSF | Additional patrols routed to DSF 2077 | -3/DSF | Entered Research 2077 | -2/Research | Evolved 2 slots: Utility x2 2111 | -2/Research | Fabricated System Shield (x1) 2243 | -2/Research | Identified exit to Access 2274 | -2/Research | Entered Access 2274 | -1/Access | Evolved 2 slots: Utility x2 2584 | -1/Access | Build established: Wizard-Ninja 2715 | -1/Access | Lost 7 parts (1p5n1u) 2717 | -1/Access | Spotted B-99 Colossus 2773 | -1/Access | Discovered new exit (range 14) 2799 | -1/Access | Crushed by falling debris 2847 | -1/Access | Crushed by falling debris 2853 | -1/Access | Crushed by falling debris 2861 | -1/Access | Crushed by falling debris 2862 | -1/Access | System corruption reached 10% 2875 | -1/Access | Crushed by falling debris 2906 | -1/Access | Lost 4 parts (1p1n2u) 2917 | -1/Access | Entered Command 2985 | -1/Command | Spotted M Guard 2986 | -1/Command | Spotted M Guard 2986 | -1/Command | Spotted Combat Programmer 2990 | -1/Command | Core integrity fell below 50% 2990 | -1/Command | Spotted Combat Programmer 2995 | -1/Command | Core integrity fell below 20% 2997 | -1/Command | Destroyed by M Guard with Ragnarok Missile Launcher Last Messages --------------- 02979_ Slug penetrates Wall. 02979_ Power Sword destroyed. 02979_ Slug penetrates Door. 02984_ System corrupted: Component data lost. 02984_ Slug penetrates Door. 02986_ System Shield destroyed. 02987_ Sneak attack on Warlord D3-CKR. 02987_ Impulse Thruster Array destroyed. 02987_ Mining Claw destroyed. 02988_ Penetrated by EMDS Slug. 02989_ Penetrated by Slug. 02990_ Penetrated by EMDS Slug. 02990_ Adv. Melee Analysis Suite destroyed. 02991_ System Shield destroyed. 02991_ Critical hit (Blast). 02991_ Adv. ECM Suite destroyed. 02992_ The unstable cave ceiling collapses. 02992_ Penetrated by Slug. 02993_ Penetrated by EMDS Slug. 02997_ Knocked back. Map ----- +----------------------------------------------------+ | ??????????????????????????????????????????# / " | | ??????????????????????????????????????????#### " | | ?????????????????????????????????????????????# | | ?????????????????????????????????????????????# | | ?????????????????????????????????????????????# | | ?????????????????????????????????????????????# | | ?????????????????????????????????????????????# | | ?????????????????????????????????????????????# | | ?????????????????????????????????????????????##### | | ?????????????????????????????????????????????????# | | ?????????????????????? ??????????????????????????# | | ????????????????????# ??????????????????????????# | | ????????????????????# ??????????????????????????# | | ????????????????????# ??????????????????????????# | | ????????????????????# ?????????????????????????# | | ????????????????????# ?????????????????????????# | | ????????????????????# ?????????????????????????# | | ????????????????????# ?????????????????????????# | | ????????????????????# ??########???????????????# | | ????????????????????# ### # ######??????????# | | ???????????????????## # #??????????# | | ??????????????????## #####??????# | | ??????????????????# # #??????# | | ?????????????#+++### W W W # ######## | | ?????????????# p / | | ?????????????# Y @ / | | ?????????????# h" | | ?????????????# Y p h/ | | ?????????????# p h + | | ?????????????# ## W ## W ### ######## | | ?????????????####??# ### #?# #??????# | | ???????????????????############?#####?#####??????# | | ?????????????????????????????????????????????????? | | ?????????????????????????????????????????????????? | | ?????????????????????????????????????????????????? | | ?????????????????????????????????????????????????? | | ?????????????????????????????????????????????????? | | ?????????????????????????????????????????????????? | | ?????????????????????????????????????????????????? | | ?????????????????????????????????????????????????? | | ?????????????????????????????????????????????????? | | ?????????????????????????????????????????????????? | | ?????????????????????????????????????????????????? | | ?????????????????????????????????????????????????? | | ?????????????????????????????????????????????????? | | ?????????????????????????????????????????????????? | | ?????????????????????????????????????????????????? | | ?????????????????????????????????????????????????? | | ?????????????????????????????????????????????????? | | ?????????????????????????????????????????????????? | +----------------------------------------------------+ Best States ------------- Heat Dissipation 52 Energy Generation 45 Energy Capacity 280 Matter Stores 300 Matter Capacity 300 Sight Range 16 Robot Scan Range 16 Terrain Scan Range 20 Terrain Scan Density 10 ECM Strength 2 Evasion (%) 65 Melee Accuracy 8 Core Analysis 6 Offensive Hacking 20 Defensive Hacking 40 Authchip Count 3 Item Schematics ----------------- System Shield | -6/Factory | Scanalyzed Nuclear Pulse Thruster | -6/Factory | Scanalyzed Xenon Bombardment Thruster | -4/Factory | Scanalyzed VTOL Module | -4/Factory | Scanalyzed Robot Schematics ------------------ None Fabricated ------------ O-24 Administrator | x1 | -6/Factory | Preloaded Nuclear Pulse Thruster | x2 | -6/Factory | Authchip System Shield | x1 | -2/Research | Authchip Alien Tech Used ----------------- None Achievements -------------- None Challenges ------------ None Game ------ Seed TrapBiocellSystem Manual? 0 Play Time 00:42:18 Cumulative 125.4 hours Start 2022.12.08 @ 14:52:55 End 2022.12.08 @ 15:33:27 Sessions 1 Manual Loads 0 Difficulty Rogue Special Mode None Game No. 223 Rogue 223 Adventurer 0 Explorer 0 Win Type - Total 2 Types 1/0/1/0/0/0/0/0/0 Lore% 65 Gallery% 72 Achievement% 53 Wizard Run 0 Options --------- ASCII 0 Keyboard 0 Movement Mouse Keybinds 0 Fullscreen 1 Font 18/SmallcapsGlow Map View 76x50 Tactical HUD 1 Map Filters NONE Filters NONE Steam 1 RUN: 455ca088-16f0-4bbc-a0fd-e135f2384cf8